Cogmind - Beta 16 @@@ ROGUE MODE // 2026.01.05 @ 17:00:03 Player: LYMPH NODE JONES Result: Destroyed by D-53 Grenadier with Mini Grenade Launcher Performance ------------- Evolutions (0) 0 Regions Visited (2) 400 Robots Destroyed (6) 30 Value Destroyed (127) 127 Prototype IDs (0) 0 Alien Tech Used (0) 0 Bonus (0) 0 TOTAL SCORE: 557 Bonus ------- None Cogmind --------- Core Integrity 0/250 Matter 255/300 Energy 85/100 System Corruption 0% Temperature Cool (0) Movement Core (150) Ox2 Location -10/Mines Parts ------- > --- POWER (1) -------- (None) > --- PROPULSION (2) --- (None) > --- UTILITY (2) ------ Small Storage Unit Visual Processing Unit > --- WEAPON (2) ------- Medium Laser Light Assault Rifle > --- INVENTORY (8) ---- Light Ion Engine Structural Scanner Datajack Peak State ------------ > --- POWER ------------ Light Ion Engine > --- PROPULSION ------- Wheel Compact Wheel > --- UTILITY ---------- Small Storage Unit Visual Processing Unit > --- WEAPON ----------- Assault Rifle Assault Rifle > --- INVENTORY -------- Light Ion Engine Aluminum Leg Aluminum Leg Wheel Medium Laser Light Assault Rifle Light Assault Rifle [Rating: 8] Favorites ----------- Power Light Ion Engine Engine Light Ion Engine Propulsion Wheel Leg Aluminum Leg Wheel Wheel Utility Small Storage Unit Device Structural Scanner Storage Small Storage Unit Processor Visual Processing Unit Weapon Assault Rifle Energy Gun Medium Laser Ballistic Gun Assault Rifle Build | -11 -10 -10 ------- Run | Yrd Mat Min Slots Evolved . | . . . Power . | . . . Propulsion . | . . . Utility . | . . . Weapon . | . . . Parts Attached 15 | 8 3 4 Power 1 | 1 . . Engine 1 | 1 . . Core . | . . . Reactor . | . . . Propulsion 5 | 4 1 . Treads . | . . . Leg 2 | 2 . . Wheel 3 | 2 1 . Hover . | . . . Flight . | . . . Utility 3 | 1 2 . Device 1 | . 1 . Storage 1 | 1 . . Processor 1 | . 1 . Hackware . | . . . Protection . | . . . Artifact . | . . . Weapon 6 | 2 . 4 Energy Gun 1 | . . 1 Energy Cannon . | . . . Ballistic Gun 5 | 2 . 3 Ballistic Cannon . | . . . Launcher . | . . . Special Weapon . | . . . Impact Weapon . | . . . Slashing Weapon . | . . . Piercing Weapon . | . . . Special Melee Weapon . | . . . Unidentified Prototypes . | . . . Parts Lost 8 | . . 8 Power 1 | . . 1 Propulsion 4 | . . 4 Utility . | . . . Weapon 3 | . . 3 Highest Loss Streak 8 | . . 8 To Critical Strikes . | . . . Average Backups 6 | 1 6 7 Power . | . 1 1 Propulsion 2 | 1 2 1 Utility . | . . 1 Weapon 2 | . 2 2 Tool/Special . | . . . Unused Backups 5 | . 2 3 Power 1 | . . 1 Propulsion . | . . . Utility 2 | . 1 1 Weapon 1 | . 1 . Tool/Special 1 | . . 1 Average Slot Usage (%) 98 | . 97 98 Engine 13 | . 14 13 Wheel 26 | . 28 25 Device 2 | . 6 . Storage 14 | . 14 14 Processor 10 | . 5 14 Ballistic Gun 27 | . 28 27 Peak Build Rating 8 | 6 8 8 Average Rating 7 | 4 7 7 On Entrance 4 | . 6 8 Avg Prop Armor Cover (%) . | . . . Naked Turns . | . . . Heaviest Build 13 | 12 13 12 Greatest Support 26 | 26 26 20 Greatest Overweight (x) 3 | 3 . 3 Average Overweight (x) . | . . . Largest Inventory Capacity 8 | 8 8 8 Average Capacity 7 | 7 8 8 Most Carried 8 | 4 8 8 Average Carried 6 | 2 6 7 Final Capacity 8 | 8 8 8 Final Carried 8 | 4 8 3 Class Distribution -------------------- 100% | Mutant Dominant Class ---------------- Mutant | -10/Materials Mutant | -10/Mines Resources | -11 -10 -10 ----------- Run | Yrd Mat Min Matter Collected 421 | 201 163 57 Remotely . | . . . Salvage Created 163 | . 112 51 Parts 13 | . 7 6 Haulers Intercepted . | . . . Recyclers Shooed . | . . . Parts Field Recycled . | . . . Retrieved Matter . | . . . Parts Self-Destructed . | . . . Prevented . | . . . Parts Restored . | . . . Kills | -11 -10 -10 ------- Run | Yrd Mat Min Combat Hostiles Destroyed 5 | . 2 3 Guns 5 | . 2 3 Classes Destroyed 3 | . 2 1 Watcher 1 | . 1 . Swarmer 3 | . . 3 Grunt 2 | . 2 . Best Kill Streak 3 | . 2 3 Combat Bots Only 3 | . 2 3 Max Kills in Single Turn 1 | . 1 1 Gunslinging . | . . . Exploded . | . . . Melee . | . . . Uniques/NPCs Destroyed . | . . . Combat | -11 -10 -10 -------- Run | Yrd Mat Min Hostile Shots Fired 55 | . 16 39 Missed 15 | . 8 7 Hits 40 | . 8 32 Projectile 40 | . 8 32 AOE 21 | . . 21 Damage Taken 960 | . 99 861 Core 251 | . 25 226 Absorbed by Shields . | . . . Core Remaining (%) 100 | 100 . . Volleys Fired 24 | . 9 15 Largest 2 | . 2 2 Hottest 40 | . 40 40 Shots Fired 48 | . 18 30 Gun 48 | . 18 30 Cannon . | . . . Launcher . | . . . Special . | . . . Kinetic 48 | . 18 30 Thermal . | . . . Explosive . | . . . Electromagnetic . | . . . Robot Hit Streak 9 | . 9 5 Robot Miss Streak 3 | . 2 3 Penetration Max . | . . . Secondary Targets 3 | . 1 2 Max Gunslinging Chain 1 | . 1 1 Shots Hit Robots 26 | . 14 12 Core Hits 10 | . 5 5 Critical Kills . | . . . Critical Parts Destroyed . | . . . Critical Strikes . | . . . Melee Attacks . | . . . Impact . | . . . Slashing . | . . . Piercing . | . . . Sneak Attacks . | . . . Combat Hostiles . | . . . Follow-up Attacks . | . . . Damage Inflicted 343 | . 186 157 Guns 343 | . 186 157 Cannons . | . . . Explosions . | . . . Melee . | . . . Ramming . | . . . Kinetic 343 | . 186 157 Thermal . | . . . Explosive . | . . . Electromagnetic . | . . . Impact . | . . . Slashing . | . . . Piercing . | . . . Highest Corruption . | . . . Average Corruption . | . . . Corruption Purged . | . . . Corruption Blocked . | . . . Overload Shots . | . . . Overflow Damage . | . . . Projectiles . | . . . Explosions . | . . . Melee . | . . . Knockbacks . | . . . Impact . | . . . Kinetic . | . . . Secondary . | . . . Self-Inflicted Damage . | . . . Shots . | . . . Rammed . | . . . Targets Rammed . | . . . Kicked . | . . . Crushed . | . . . Highest Temperature 2 | . 2 . Average Temperature 1 | . 1 . Received Heat Transfer 57 | . 57 . Siege Activations . | . . . Martial Activations . | . . . Shielding Activations . | . . . Robots Disrupted . | . . . Combat Hostiles . | . . . Robots Corrupted . | . . . Combat Hostiles . | . . . Parts Fried . | . . . Impact Corruptions . | . . . Robots Melted . | . . . Combat Hostiles . | . . . Parts Melted . | . . . Heat Transferred . | . . . Parts Sabotaged . | . . . Parts Stolen . | . . . Parts Stripped . | . . . Power Chain Reactions . | . . . Alert | -11 -10 -10 ------- Run | Yrd Mat Min Maximum Alert Level . | . . . Low Security (%) 100 | 100 100 100 Level 1 . | . . . Level 2 . | . . . Level 3 . | . . . Level 4 . | . . . Level 5 . | . . . High Security . | . . . Max Security . | . . . Peak Influence 60 | . 50 60 Initial . | . . . Average 7 | . 5 9 Influence Increases 132 | . 62 70 Destroy 0b10 Robot/C 100 | . 40 60 Destroy 0b10 Robot/NC 5 | . 5 . Destroy Leader 22 | . 12 10 Successful Hack 5 | . 5 . Influence Decreases 132 | . 60 72 Entered New Map 2 | . . 2 Time Decay 130 | . 60 70 Squads Dispatched 1 | . 1 . Investigation 1 | . 1 . Extermination . | . . . Reinforcement . | . . . Assault . | . . . Garrison . | . . . Intercept . | . . . Searches Triggered . | . . . Construction Impeded . | . . . Haulers Reinforced . | . . . Active Scanning Responses . | . . . Cargo Convoy Interrupts . | . . . Stealth | -11 -10 -10 --------- Run | Yrd Mat Min Distress Signals . | . . . Communications Jammed . | . . . Distress Signals . | . . . Times Spotted 8 | . 3 5 Peak Tracking Total 3 | . 2 3 Tactical Retreats . | . . . Traps | -11 -10 -10 ------- Run | Yrd Mat Min Traps Triggered . | . . . Indirectly . | . . . Trap Hack Attempts . | . . . Triggered . | . . . Disarmed . | . . . Reprogrammed . | . . . Reused . | . . . Traps Extracted . | . . . Installed . | . . . Triggered . | . . . Machines | -11 -10 -10 ---------- Run | Yrd Mat Min Machines Disabled . | . . . Max in Single Turn . | . . . Machines Repaired . | . . . Machines Dismantled . | . . . Machines Sabotaged . | . . . Overloaded Fab Kills . | . . . Hacking | -11 -10 -10 --------- Run | Yrd Mat Min Machines Accessed 3 | . 3 . Terminals 2 | . 2 . Fabricators . | . . . Repair Stations . | . . . Recycling Units 1 | . 1 . Scanalyzers . | . . . Garrison Access . | . . . Total Hacks 7 | . 7 . Successful 2 | . 2 . Failed 5 | . 5 . Catastrophic 1 | . 1 . Database Lockouts . | . . . Manual . | . . . Terminals 3 | . 3 . Fabricators . | . . . Repair Stations . | . . . Recycling Units 4 | . 4 . Scanalyzers . | . . . Garrison Access . | . . . Terminal Hacks 1 | . 1 . Hauler Manifests 1 | . 1 . Fabricator Hacks . | . . . Repair Station Hacks . | . . . Recycling Unit Hacks 1 | . 1 . Report Inventory 1 | . 1 . Scanalyzer . | . . . Garrison Access Hacks . | . . . Unauthorized Hacks . | . . . Terminals . | . . . Fabricators . | . . . Repair Stations . | . . . Recycling Units . | . . . Scanalyzers . | . . . Garrison Access . | . . . Data Cores Recovered . | . . . Used . | . . . Hacking Detections 2 | . 2 . Full Trace Events 1 | . 1 . Feedback Events . | . . . Feedback Blocked . | . . . Robot Schematics Acquired . | . . . Robots Built . | . . . Authchips . | . . . Time . | . . . Total Robot Build Rating . | . . . Part Schematics Acquired . | . . . Parts Built . | . . . Authchips . | . . . Time . | . . . Total Part Build Rating . | . . . Part Studies Acquired . | . . . Parts Repaired . | . . . Time . | . . . Parts Recycled . | . . . Recycled Matter . | . . . Retrieved Matter . | . . . Retrieved Components . | . . . Parts Scanalyzed . | . . . Part Schematics Acquired . | . . . Parts Damaged . | . . . Bothacking | -11 -10 -10 ------------ Run | Yrd Mat Min Used RIF Installer . | . . . Robots Hacked . | . . . Non-combat . | . . . Combat . | . . . Robot Hacks Applied . | . . . Relay Couplers Released . | . . . Fabnet Peak Effective % . | . . . Robots Rewired . | . . . Allies Hacked . | . . . Hacks Repelled . | . . . Allies | -11 -10 -10 -------- Run | Yrd Mat Min Total Allies . | . . . Largest Group . | . . . Highest-Rated Group . | . . . Highest-Rated Ally . | . . . Total Orders . | . . . Ally Attacks . | . . . Total Damage . | . . . Kills . | . . . Allies Corrupted . | . . . Allies Melted . | . . . Intel | -11 -10 -10 ------- Run | Yrd Mat Min Active Infowar (turns) 817 | . 347 470 Optics 626 | . 156 470 Structural 191 | . 191 . Robot Analysis Total . | . . . Derelict Logs Recovered 1 | . . 1 Drone Launches . | . . . Drone Recoveries . | . . . Exploration | -11 -10 -10 ------------- Run | Yrd Mat Min Turns Passed 934 | 62 402 470 Spaces Moved 857 | 48 371 438 Core 15 | 8 . 7 Treads . | . . . Legs 18 | 6 . 12 Wheels 824 | 34 371 419 Hover . | . . . Flight . | . . . Fastest Speed 50 | 50 80 80 Average Speed 85 | 98 87 82 Slowest Speed 200 | 200 90 200 Overloaded Moves . | . . . Propulsion Burnouts . | . . . Robots Hopped . | . . . Potential Cave-ins . | . . . Cave-ins Triggered . | . . . Exploration Rate (%) 33 | 5 47 47 Regions Visited 2 Branch Regions 1 Pre-discovered Areas 1 | . . 1 Known Exits Taken . | . . . Unknown Exits Taken 2 | 1 1 . Scrap Searched 1 | . . 1 Spaces Dug . | . . . Terrain Destroyed . | . . . Melee . | . . . Projectile . | . . . AOE . | . . . Terrain Rammed . | . . . Walls Destroyed . | . . . Machines Disabled . | . . . Actions | -11 -10 -10 --------- Run | Yrd Mat Min Total 1008 | 59 431 518 Wait 95 | . 37 58 Move 855 | 47 370 438 Hop . | . . . Pick Up 9 | 2 7 . Fast Attach 11 | 8 2 1 Attach 6 | . 1 5 Detach 2 | 2 . . Swap . | . . . Drop 5 | . 4 1 Fire 24 | . 9 15 Melee . | . . . Ram . | . . . Kick . | . . . Crush . | . . . Escape Stasis . | . . . Rewire 1 | . 1 . Trap . | . . . Miscellaneous . | . . . Route ------- -11/Scrapyard -10/Materials (discovered 2 exits: [*Min x2]) -10/Mines History --------- Turn | Location | Event 20 | -11/Scrapyard | Discovered new exit (range 15) 63 | -11/Scrapyard | Entered Materials 64 | -10/Materials | Met a group of wandering Federalists 193 | -10/Materials | Discovered new exit (range 3) 301 | -10/Materials | Build established: Mutant 314 | -10/Materials | Discovered new exit (range 12) 465 | -10/Materials | Entered Mines 679 | -10/Mines | Learned location of Mines (-9) 680 | -10/Mines | Assembled infested the area 906 | -10/Mines | Core integrity fell below 50% 919 | -10/Mines | Core integrity fell below 20% 935 | -10/Mines | Destroyed by D-53 Grenadier with Mini Grenade Launcher Last Messages --------------- 00680_ ALERT: Infestation in the mines, dispatching Demolisher response squad. 00680_ R-06 Scavenger collects Flight Unit. 00681_ S-10 Pest destroyed. 00684_ R-06 Scavenger collects Lgt. Assault Rifle. 00707_ Acquired 28 matter. 00709_ K-01 Serf cleans the Laser Drill. 00767_ T-07 Excavator is excavating. 00893_ Wheel destroyed. 00894_ The unstable cave ceiling collapses. 00900_ Wheel destroyed. 00901_ Assault Rifle destroyed. 00903_ The unstable cave ceiling collapses. 00913_ Lgt. Ion Engine destroyed. 00915_ The unstable cave ceiling collapses. 00926_ Aluminum Leg destroyed. 00928_ The unstable cave ceiling collapses. 00932_ Lgt. Assault Rifle destroyed. 00933_ The unstable cave ceiling collapses. Map ----- +----------------------------------------------------+ | ?????????????????????## ## ##????# #? | | ?????????????????????# ##?????# #? | | ?????????????????????# ##??????# #? | | ?????????????????????### #???????# ## #? | | ??????????????????????# # ##???????# ## #? | | ??????????????????????# ###????????# ## #? | | ??????????????????????# ###?????????# ## ## | | ??????????????????????# #?????????# | | ??????????????????????# # #?????????# | | ??????????????????????# ## #?????????###### | | ??????????????????????# #??????????????# | | ??????????????????????# ##?????????????# | | ??????????????????????# #??????#####??# | | ??????????????????????# ##?????## ##?# | | ??????????????????????## #?????## ### | | ???????????????????##### ##?????# ## | | ???????????????????# # dd #?????# # | | ???????????????????# #??????# | | ???????????????????## #??????## | | ????????????????????## #???????# | | ?????????????????????## # #???????# | | ??????????????????????### #???????# ### # | | ????????????????????##??# ##??????# #?###### | | ????????????????# ## ## ##?????# #??????? | | ????????????????# #?????# #??????? | | ???????????????# @ #?????# #??????? | | ???????????????# ##?????# #??????? | | ???????????????## ###???#### #??????? | | ????????????????#### ##?????# #??????? | | ???????????????????## #??????# ####??????? | | ????????????????????# #??????# #?????????? | | ???????????????????? #??????# #?????????? | | ??????????????????? ##??????# #?????????? | | ??????????????????# ##???????# #?????????? | | ?????????????????? $ ##????????# #?????????? | | ????????????????? ####?????????# #?????????? | | ???????????????? ?????????????# #?????????? | | ??????????????? ?????????????# #?????????? | | ??????????????? #?????????????# #?????????? | | ???????????????? ??????????????# #?????????? | | ?????????????????? ??????????????# #?????????? | | ????????????????????? ???????????????# #?????????? | | ?????????????????????????????????????# #????#####? | | ?????????????????????????????????????# ###### #? | | ??????????????????????????????????#### ## #? | | ??????????????????????????????????# ##? | | ??????????????????????????????????#""" ######?? | | ??????????????????????????????????#""" #??????? | | ??????????????????????????????????#""" #??????? | | ??????????????????????????????????# #??????? | +----------------------------------------------------+ Best States ------------- Heat Dissipation 25 Energy Generation 10 Energy Capacity 125 Matter Stores 300 Matter Capacity 300 Sight Range 18 Terrain Scan Density 10 Evasion (%) 55 Item Schematics ----------------- None Robot Schematics ------------------ None Fabricated ------------ Nothing Repaired ---------- Nothing Studied --------- None Alien Tech Used ----------------- None Achievements -------------- None Challenges ------------ None Game ------ Seed MicroCoreMegatreads Manual? 0 Play Time 00:12:36 Cumulative 15.4 hours Start 2026.01.05 @ 04:01:06 End 2026.01.05 @ 17:00:03 Sessions 2 Manual Loads 0 Difficulty Rogue Special Mode None Game No. 37 Rogue 37 Adventurer 0 Explorer 0 Win Type - Total 0 Types 0/0/0/0/0/0/0/0/0/0 Lore% 15 Gallery% 15 Achievement% 15 Wizard Run 0 Options --------- Layout 2 ASCII 0 Keyboard 0 Movement Arrows Keybinds 0 Fullscreen 1 Font 16/SmallcapsGlow Map View 50x49 Zoom Use 0% Tactical HUD 1 Map Filters NONE Filters NONE Steam SD RUN: c2ae75ad-dc32-4051-bdb5-2a4855931f90